fUSD/lending_fUSD_20250530
["ID","MTS","AMOUNT","RATE_DAILY","PERIOD"]
[363180923,1748616647413,-423.12378357,0.00021917,2]
[363180924,1748616647423,-529.49,0.00021917,2]
[363180925,1748616647433,-420.0,0.00021917,2]
[363180926,1748616647442,-420.0,0.00021917,2]
[363180927,1748616647453,-654.45,0.00021917,2]
[363180928,1748616647463,-420.0,0.00021917,2]
[363180929,1748616647473,-420.0,0.00021917,2]
[363180930,1748616647483,-425.88066839,0.00021917,2]
[363180931,1748616647492,-420.0,0.00021917,2]
[363180932,1748616647501,-421.40116661,0.00021917,2]
[363180933,1748616647511,-1483.35,0.00021917,2]
[363180934,1748616647522,-420.0,0.00021917,2]
[363180935,1748616647533,-420.0,0.00021917,2]
[363180936,1748616647543,-1269.66,0.00021917,2]
[363180937,1748616647554,-738.85,0.00021917,2]
[363180938,1748616647564,-420.0,0.00021917,2]
[363180939,1748616647574,-422.19208714,0.00021917,2]
[363180940,1748616647583,-420.0,0.00021917,2]
[363180941,1748616647592,-1012.08,0.00021917,2]
[363180942,1748616647602,-421.55553569,0.00021917,2]
[363180943,1748616647612,-222.98908,0.00021917,2]
[363180944,1748616647621,-659.19,0.00021917,2]
[363180945,1748616647631,-222.98908,0.00021917,2]
[363180946,1748616647641,-854.82,0.00021917,2]
[363180947,1748616647650,-420.0,0.00021917,2]
[363180948,1748616647660,-420.0,0.00021917,2]
[363180949,1748616647670,-1235.96,0.00021917,2]
[363180950,1748616647680,-425.04396694,0.00021917,2]
[363180951,1748616647690,-222.98908,0.00021917,2]
[363180952,1748616647699,-222.98908,0.00021917,2]
[363180953,1748616647709,-852.51,0.00021917,2]
[363180954,1748616647719,-420.0,0.00021917,2]
[363180955,1748616647729,-789.33,0.00021917,2]
[363180956,1748616647739,-697.78,0.00021917,2]
[363180957,1748616647749,-151.0,0.00021917,2]
[363180958,1748616647759,-732.12,0.00021917,2]
[363180959,1748616647768,-151.0,0.00021917,2]
[363180960,1748616647778,-420.0,0.00021917,2]
[363180961,1748616647788,-1260.71,0.00021917,2]
[363180962,1748616647797,-420.0,0.00021917,2]
[363180963,1748616647807,-420.0,0.00021917,2]
[363180964,1748616647817,-420.0,0.00021917,2]
[363180965,1748616647827,-420.0,0.00021917,2]
[363180966,1748616647836,-420.0,0.00021917,2]
[363180967,1748616647847,-859.17,0.00021917,2]
[363180968,1748616647857,-690.29,0.00021917,2]
[363180969,1748616647867,-1490.47,0.00021917,2]
[363180970,1748616647877,-420.0,0.00021917,2]
[363180971,1748616647886,-500.23330534,0.00021917,2]
[363180972,1748616647896,-1029.33,0.00021917,2]
[363180973,1748616647906,-420.0,0.00021917,2]
[363180974,1748616647917,-420.0,0.00021917,2]
[363180975,1748616647928,-499.6,0.00021917,2]
[363180976,1748616647938,-420.0,0.00021917,2]
[363180977,1748616647950,-420.0,0.00021917,2]
[363180978,1748616647959,-420.0,0.00021917,2]
[363180979,1748616647969,-1074.41,0.00021917,2]
[363180980,1748616647979,-420.0,0.00021917,2]
[363180981,1748616647990,-597.99,0.00021917,2]
[363180982,1748616647999,-420.0,0.00021917,2]
[363180983,1748616648009,-471.46,0.00021917,2]
[363180984,1748616648020,-585.06,0.00021917,2]
[363180985,1748616648030,-569.42,0.00021917,2]
[363180986,1748616648040,-405.11890733,0.00021917,2]
[363180987,1748616648050,-420.0,0.00021917,2]
[363180988,1748616648060,-589.76,0.00021917,2]
[363180989,1748616648070,-421.20647887,0.00021917,2]
[363180990,1748616648080,-420.0,0.00021917,2]
[363180991,1748616648090,-420.0,0.00021917,2]
[363180992,1748616648100,-420.0,0.00021917,2]
[363180993,1748616648110,-420.0,0.00021917,2]
[363180994,1748616648120,-420.0,0.00021917,2]
[363180995,1748616648130,-420.0,0.00021917,2]
[363180996,1748616648140,-420.0,0.00021917,2]
[363180997,1748616648150,-1166.51,0.00021917,2]
[363180998,1748616648160,-420.0,0.00021917,2]
[363180999,1748616648171,-424.65641755,0.00021917,2]
[363181000,1748616648181,-421.95220772,0.00021917,2]
[363181001,1748616648191,-420.0,0.00021917,2]
[363181002,1748616648201,-2587.91,0.00021917,2]
[363181003,1748616648211,-1236.24,0.00021917,2]
[363181004,1748616648222,-151.0,0.00021917,2]
[363181005,1748616648232,-420.0,0.00021917,2]
[363181006,1748616648242,-598.97,0.00021917,2]
[363181007,1748616648252,-652.6,0.00021917,2]
[363181008,1748616648262,-151.0,0.00021917,2]
[363181009,1748616648272,-420.0,0.00021917,2]
[363181010,1748616648281,-1378.2,0.00021917,2]
[363181011,1748616648291,-420.0,0.00021917,2]
[363181012,1748616648301,-1173.13,0.00021917,2]
[363181013,1748616648311,-1115.86,0.00021917,2]
[363181014,1748616648320,-420.0,0.00021917,2]
[363181015,1748616648331,-420.0,0.00021917,2]
[363181016,1748616648341,-420.0,0.00021917,2]
[363181017,1748616648351,-420.0,0.00021917,2]
[363181018,1748616648361,-420.0,0.00021917,2]
[363181019,1748616648371,-904.45,0.00021917,2]
[363181020,1748616648381,-1056.15,0.00021917,2]
[363181021,1748616648392,-420.0,0.00021917,2]
[363181022,1748616648402,-420.0,0.00021917,2]
[363181023,1748616648410,-423.46579454,0.00021917,2]
[363181024,1748616648421,-421.76156006,0.00021917,2]
[363181025,1748616648430,-420.0,0.00021917,2]
[363181026,1748616648440,-420.0,0.00021917,2]
[363181027,1748616648450,-420.0,0.00021917,2]
[363181028,1748616648460,-428.52645364,0.00021917,2]
[363181029,1748616648471,-420.0,0.00021917,2]
[363181030,1748616648482,-285.64895881,0.00021917,2]
[363181031,1748616648492,-420.0,0.00021917,2]
[363181032,1748616648502,-420.0,0.00021917,2]
[363181033,1748616648513,-423.59827004,0.00021917,2]
[363181034,1748616648522,-641.81,0.00021917,2]
[363181035,1748616648532,-420.0,0.00021917,2]
[363181036,1748616648543,-422.8962042,0.00021917,2]
[363181037,1748616648760,-568.36546266,0.00021917,2]
[363181038,1748616648771,-420.0,0.00021917,2]
[363181039,1748616648780,-420.68218417,0.00021917,2]
[363181040,1748616648790,-420.0,0.00021917,2]
[363181041,1748616648799,-420.0,0.00021917,2]
[363181042,1748616648809,-682.0,0.00021917,2]
[363181043,1748616648819,-425.09082977,0.00021917,2]
[363181044,1748616648828,-420.0,0.00021917,2]
[363181045,1748616648837,-151.0,0.00021917,2]
[363181046,1748616648847,-422.42915869,0.00021917,2]
[363181047,1748616648856,-420.0,0.00021917,2]
[363181048,1748616648865,-151.0,0.00021917,2]
[363181049,1748616648875,-420.0,0.00021917,2]
[363181050,1748616648884,-569.2,0.00021917,2]
[363181051,1748616648894,-578.68,0.00021917,2]
[363181052,1748616648905,-424.68521743,0.00021917,2]
[363181053,1748616648916,-420.0,0.00021917,2]
[363181054,1748616648926,-437.35748621,0.00021917,2]
[363181055,1748616648936,-420.0,0.00021917,2]
[363181056,1748616648946,-420.0,0.00021917,2]
[363181057,1748616648959,-151.0,0.00021917,2]
[363181058,1748616648970,-163.304967,0.00021917,2]
[363181059,1748616648979,-151.0,0.00021917,2]
[363181060,1748616648990,-163.304967,0.00021917,2]
[363181061,1748616648999,-716.28,0.00021917,2]
[363181062,1748616649009,-426.00068302,0.00021917,2]
[363181063,1748616649018,-574.28234875,0.00021917,2]
[363181064,1748616649028,-448.3,0.00021917,2]
[363181065,1748616649038,-220.947744,0.00021917,2]
[363181066,1748616649048,-420.0,0.00021917,2]
[363181067,1748616649057,-163.304967,0.00021917,2]
[363181068,1748616649066,-163.304967,0.00021917,2]
[363181069,1748616649076,-581.94,0.00021917,2]
[363181070,1748616649085,-423.23983206,0.00021917,2]
[363181071,1748616649095,-420.0,0.00021917,2]
[363181072,1748616649104,-1574.1,0.00021917,2]
[363181073,1748616649114,-508.74,0.00021917,2]
[363181074,1748616649123,-420.0,0.00021917,2]
[363181075,1748616649133,-2109.26,0.00021917,2]
[363181076,1748616649142,-420.0,0.00021917,2]
[363181077,1748616649151,-420.0,0.00021917,2]
[363181078,1748616649160,-420.0,0.00021917,2]
[363181079,1748616649172,-1296.35,0.00021917,2]
[363181080,1748616649182,-420.0,0.00021917,2]
[363181081,1748616649191,-387.73417533,0.00021917,2]
[363181082,1748616649201,-151.0,0.00021917,2]
[363181083,1748616649210,-425.41094628,0.00021917,2]
[363181084,1748616649220,-420.0,0.00021917,2]
[363181085,1748616649229,-586.0,0.00021917,2]
[363181086,1748616649239,-151.0,0.00021917,2]
[363181087,1748616649249,-151.0,0.00021917,2]
[363181088,1748616649259,-420.0,0.00021917,2]
[363181089,1748616649268,-151.0,0.00021917,2]
[363181090,1748616649277,-420.0,0.00021917,2]
[363181091,1748616649286,-420.0,0.00021917,2]
[363181092,1748616649295,-420.0,0.00021917,2]
[363181093,1748616649304,-420.0,0.00021917,2]
[363181094,1748616649314,-420.0,0.00021917,2]
[363181095,1748616649323,-420.0,0.00021917,2]
[363181096,1748616649333,-1221.28,0.00021917,2]
[363181097,1748616649342,-420.0,0.00021917,2]
[363181098,1748616649352,-503.28,0.00021917,2]
[363181099,1748616649361,-420.0,0.00021917,2]
[363181100,1748616649371,-151.0,0.00021917,2]
[363181101,1748616649379,-420.0,0.00021917,2]
[363181102,1748616649389,-151.0,0.00021917,2]
[363181103,1748616649398,-420.0,0.00021917,2]
[363181104,1748616649407,-425.35490751,0.00021917,2]
[363181105,1748616649418,-420.0,0.00021917,2]
[363181106,1748616649427,-420.0,0.00021917,2]
[363181107,1748616649437,-151.0,0.00021917,2]
[363181108,1748616649447,-151.0,0.00021917,2]
[363181109,1748616649456,-151.0,0.00021917,2]
[363181110,1748616649465,-154.460828,0.00021917,2]
[363181111,1748616649475,-151.0,0.00021917,2]
[363181112,1748616649484,-151.0,0.00021917,2]
[363181113,1748616649493,-151.0,0.00021917,2]
[363181114,1748616649503,-151.0,0.00021917,2]
[363181115,1748616649512,-420.0,0.00021917,2]
[363181116,1748616649522,-420.0,0.00021917,2]
[363181117,1748616649532,-427.36,0.00021917,2]
[363181118,1748616649541,-422.27106189,0.00021917,2]
[363181119,1748616649551,-420.0,0.00021917,2]
[363181120,1748616649560,-1823.7,0.00021917,2]
[363181121,1748616649570,-601.59,0.00021917,2]
[363181122,1748616649579,-420.0,0.00021917,2]
[363181123,1748616649588,-504.550159,0.00021917,2]
[363181124,1748616649598,-420.0,0.00021917,2]
[363181125,1748616649607,-420.0,0.00021917,2]
[363181126,1748616649616,-1180.79,0.00021917,2]
[363181127,1748616649625,-735.86,0.00021917,2]
[363181128,1748616649635,-420.0,0.00021917,2]
[363181129,1748616649644,-420.0,0.00021917,2]
[363181130,1748616649653,-486.5,0.00021917,2]
[363181131,1748616649663,-1716.620633,0.00021917,2]
[363181132,1748616649674,-420.0,0.00021917,2]
[363181133,1748616649683,-1716.620633,0.00021917,2]
[363181134,1748616649693,-711.9,0.00021917,2]
[363181135,1748616649703,-420.0,0.00021917,2]
[363181136,1748616649712,-420.0,0.00021917,2]
[363181137,1748616649722,-1716.620633,0.00021917,2]
[363181138,1748616649731,-1716.620633,0.00021917,2]
[363181139,1748616649740,-420.63956753,0.00021917,2]
[363181140,1748616649750,-1100.72,0.00021917,2]
[363181141,1748616649759,-658.42,0.00021917,2]
[363181142,1748616649769,-420.0,0.00021917,2]
[363181143,1748616649778,-503.73152989,0.00021917,2]
[363181144,1748616649788,-606.69,0.00021917,2]
[363181145,1748616649797,-504.79716905,0.00021917,2]
[363181146,1748616649807,-420.0,0.00021917,2]
[363181147,1748616649816,-420.0,0.00021917,2]
[363181148,1748616649826,-420.0,0.00021917,2]
[363181149,1748616649835,-890.51,0.00021917,2]
[363181150,1748616649844,-420.0,0.00021917,2]
[363181151,1748616649854,-922.89,0.00021917,2]
[363181152,1748616649863,-420.0,0.00021917,2]
[363181153,1748616649874,-420.0,0.00021917,2]
[363181154,1748616649883,-420.0,0.00021917,2]
[363181155,1748616649890,-420.0,0.00021917,2]
[363181156,1748616649898,-420.0,0.00021917,2]
[363181157,1748616649904,-420.0,0.00021917,2]
[363181158,1748616649912,-420.0,0.00021917,2]
[363181159,1748616649922,-424.66926536,0.00021917,2]
[363181160,1748616649931,-420.0,0.00021917,2]
[363181161,1748616649940,-420.0,0.00021917,2]
[363181162,1748616649952,-420.0,0.00021917,2]
[363181163,1748616649962,-420.0,0.00021917,2]
[363181164,1748616649972,-420.0,0.00021917,2]
[363181165,1748616649982,-420.0,0.00021917,2]
[363181166,1748616649991,-420.0,0.00021917,2]
[363181167,1748616650001,-420.0,0.00021917,2]
[363181168,1748616650011,-420.0,0.00021917,2]
[363181169,1748616650020,-610.77,0.00021917,2]
[363181170,1748616650031,-503.77097076,0.00021917,2]
[363181171,1748616650040,-488.61,0.00021917,2]
[363181172,1748616650050,-424.04554622,0.00021917,2]
[363181173,1748616650059,-420.0,0.00021917,2]
[363181174,1748616650068,-420.0,0.00021917,2]
[363181175,1748616650078,-420.0,0.00021917,2]
[363181176,1748616650087,-420.0,0.00021917,2]
[363181177,1748616650096,-420.0,0.00021917,2]
[363181178,1748616650106,-424.22919844,0.00021917,2]
[363181179,1748616650116,-420.0,0.00021917,2]
[363181180,1748616650126,-420.0,0.00021917,2]
[363181181,1748616650135,-393.13293947,0.00021917,2]
[363181182,1748616650145,-151.0,0.00021917,2]
[363181183,1748616650155,-151.0,0.00021917,2]
[363181184,1748616650164,-151.0,0.00021917,2]
[363181185,1748616650175,-420.0,0.00021917,2]
[363181186,1748616650185,-420.0,0.00021917,2]
[363181187,1748616650195,-420.0,0.00021917,2]
[363181188,1748616650204,-420.0,0.00021917,2]
[363181189,1748616650213,-1314.68,0.00021917,2]
[363181190,1748616650222,-1455.68,0.00021917,2]
[363181191,1748616650231,-600.02,0.00021917,2]
[363181192,1748616650242,-188.531369,0.00021917,2]
[363181193,1748616650251,-547.9,0.00021917,2]
[363181194,1748616650261,-420.0,0.00021917,2]
[363181195,1748616650270,-420.0,0.00021917,2]
[363181196,1748616650279,-420.0,0.00021917,2]
[363181197,1748616650289,-525.94111863,0.00021917,2]
[363181198,1748616650298,-420.0,0.00021917,2]
[363181199,1748616650307,-1269.76,0.00021917,2]
[363181200,1748616650316,-420.0,0.00021917,2]
[363181201,1748616650326,-420.0,0.00021917,2]
[363181202,1748616650335,-460.2,0.00021917,2]
[363181203,1748616650345,-420.0,0.00021917,2]
[363181204,1748616650354,-227.70112321,0.00021917,2]
[363181205,1748616650364,-420.0,0.00021917,2]
[363181206,1748616650373,-420.0,0.00021917,2]
[363181207,1748616650383,-1281.1,0.00021917,2]
[363181208,1748616650392,-420.0,0.00021917,2]
[363181209,1748616650402,-420.0,0.00021917,2]
[363181210,1748616650412,-758.15,0.00021917,2]
[363181211,1748616650423,-420.0,0.00021917,2]
[363181212,1748616650433,-647.55,0.00021917,2]
[363181213,1748616650442,-983.34,0.00021917,2]
[363181214,1748616650452,-501.71,0.00021917,2]
[363181215,1748616650462,-420.0,0.00021917,2]
[363181216,1748616650471,-420.0,0.00021917,2]
[363181217,1748616650479,-406.29579142,0.00021917,2]
[363181218,1748616650489,-803.24,0.00021917,2]
[363181219,1748616650499,-420.0,0.00021917,2]
[363181220,1748616650508,-422.67486705,0.00021917,2]
[363181221,1748616650518,-420.0,0.00021917,2]
[363181222,1748616650528,-1218.32,0.00021917,2]
[363181223,1748616650537,-746.12,0.00021917,2]
[363181224,1748616650547,-426.18682925,0.00021917,2]
[363181225,1748616650556,-420.0,0.00021917,2]
[363181226,1748616650566,-461.01,0.00021917,2]
[363181227,1748616650575,-659.05,0.00021917,2]
[363181228,1748616650585,-210.46197781,0.00021917,2]
[363181229,1748616650594,-1905.82,0.00021917,2]
[363181230,1748616650604,-751.93,0.00021917,2]
[363181231,1748616650613,-420.0,0.00021917,2]
[363181232,1748616650623,-151.0,0.00021917,2]
[363181233,1748616650632,-151.0,0.00021917,2]
[363181234,1748616650641,-420.0,0.00021917,2]
[363181235,1748616650650,-151.0,0.00021917,2]
[363181236,1748616650660,-511.69337519,0.00021917,2]
[363181237,1748616650670,-1623.68,0.00021917,2]
[363181238,1748616650680,-488.51,0.00021917,2]
[363181239,1748616650690,-420.0,0.00021917,2]
[363181240,1748616650699,-420.0,0.00021917,2]
[363181241,1748616650709,-1065.45,0.00021917,2]
[363181242,1748616650719,-520.45542413,0.00021917,2]
[363181243,1748616650728,-420.0,0.00021917,2]
[363181244,1748616650737,-420.0,0.00021917,2]
[363181245,1748616650746,-1781.16,0.00021917,2]
[363181246,1748616650755,-420.0,0.00021917,2]
[363181247,1748616650764,-420.0,0.00021917,2]
[363181248,1748616650773,-569.36678397,0.00021917,2]
[363181249,1748616650783,-420.0,0.00021917,2]
[363181250,1748616650793,-2016.38,0.00021917,2]
[363181251,1748616650802,-420.0,0.00021917,2]
[363181252,1748616650811,-420.0,0.00021917,2]
[363181253,1748616650820,-1080.13,0.00021917,2]
[363181254,1748616650830,-420.0,0.00021917,2]
[363181255,1748616650839,-520.93,0.00021917,2]
[363181256,1748616650848,-420.0,0.00021917,2]
[363181257,1748616650858,-422.72380041,0.00021917,2]
[363181258,1748616650867,-420.0,0.00021917,2]
[363181259,1748616650876,-420.0,0.00021917,2]
[363181260,1748616650886,-447.72,0.00021917,2]
[363181261,1748616650895,-483.94,0.00021917,2]
[363181262,1748616650904,-617.07,0.00021917,2]
[363181263,1748616650914,-420.0,0.00021917,2]
[363181264,1748616650926,-420.0,0.00021917,2]
[363181265,1748616650935,-10201.81,0.00021917,2]
[363181266,1748616650946,-420.0,0.00021917,2]
[363181267,1748616650960,-151.0,0.00021917,2]
[363181268,1748616650970,-159.30593,0.00021917,2]
[363181269,1748616650979,-420.0,0.00021917,2]
[363181270,1748616650989,-624.51,0.00021917,2]
[363181271,1748616650999,-151.0,0.00021917,2]
[363181272,1748616651008,-634.02,0.00021917,2]
[363181273,1748616651018,-151.0,0.00021917,2]
[363181274,1748616651028,-420.0,0.00021917,2]
[363181275,1748616651038,-152.493386,0.00021917,2]
[363181276,1748616651048,-1094.85,0.00021917,2]
[363181277,1748616651058,-464.14,0.00021917,2]
[363181278,1748616651067,-420.0,0.00021917,2]
[363181279,1748616651077,-420.0,0.00021917,2]
[363181280,1748616651086,-3116.89,0.00021917,2]
[363181281,1748616651096,-420.0,0.00021917,2]
[363181282,1748616651105,-506.67937776,0.00021917,2]
[363181283,1748616651114,-151.0,0.00021917,2]
[363181284,1748616651124,-151.0,0.00021917,2]
[363181285,1748616651133,-1542.99,0.00021917,2]
[363181286,1748616651143,-151.0,0.00021917,2]
[363181287,1748616651153,-151.0,0.00021917,2]
[363181288,1748616651163,-420.0,0.00021917,2]
[363181289,1748616651174,-151.0,0.00021917,2]
[363181290,1748616651183,-420.0,0.00021917,2]
[363181291,1748616651193,-420.0,0.00021917,2]
[363181292,1748616651202,-151.0,0.00021917,2]
[363181293,1748616651211,-651.07,0.00021917,2]
[363181294,1748616651221,-420.0,0.00021917,2]
[363181295,1748616651230,-552.1472666,0.00021917,2]
[363181296,1748616651239,-420.0,0.00021917,2]
[363181297,1748616651248,-420.0,0.00021917,2]
[363181298,1748616651258,-420.0,0.00021917,2]
[363181299,1748616651267,-151.0,0.00021917,2]
[363181300,1748616651276,-420.0,0.00021917,2]
[363181301,1748616651286,-423.4392832,0.00021917,2]
[363181302,1748616651295,-151.0,0.00021917,2]
[363181303,1748616651304,-740.72,0.00021917,2]
[363181304,1748616651313,-420.0,0.00021917,2]
[363181305,1748616651323,-151.0,0.00021917,2]
[363181306,1748616651332,-1875.53,0.00021917,2]
[363181307,1748616651341,-420.0,0.00021917,2]
[363181308,1748616651351,-420.0,0.00021917,2]
[363181309,1748616651362,-420.0,0.00021917,2]
[363181310,1748616651371,-151.0,0.00021917,2]
[363181311,1748616651380,-420.0,0.00021917,2]
[363181312,1748616651389,-151.0,0.00021917,2]
[363181313,1748616651398,-151.0,0.00021917,2]
[363181314,1748616651409,-960.55,0.00021917,2]
[363181315,1748616651421,-508.91,0.00021917,2]
[363181316,1748616651430,-420.0,0.00021917,2]
[363181317,1748616651440,-291.04894962,0.00021917,2]
[363181318,1748616651449,-479.63,0.00021917,2]
[363181319,1748616651458,-862.82,0.00021917,2]
[363181320,1748616651468,-420.0,0.00021917,2]
[363181321,1748616651477,-341.10256465,0.00021917,2]
[363181322,1748616651486,-491.86,0.00021917,2]
[363181323,1748616651495,-500.38,0.00021917,2]
[363181324,1748616651504,-420.0,0.00021917,2]
[363181325,1748616651513,-420.0,0.00021917,2]
[363181326,1748616651523,-420.0,0.00021917,2]
[363181327,1748616651532,-420.0,0.00021917,2]
[363181328,1748616651542,-420.0,0.00021917,2]
[363181329,1748616651551,-1013.34,0.00021917,2]
[363181330,1748616651560,-420.0,0.00021917,2]
[363181331,1748616651569,-420.0,0.00021917,2]
[363181332,1748616651578,-420.0,0.00021917,2]
[363181333,1748616651587,-1612.35,0.00021917,2]
[363181334,1748616651596,-827.18,0.00021917,2]
[363181335,1748616651605,-420.0,0.00021917,2]
[363181336,1748616651615,-420.0,0.00021917,2]
[363181337,1748616651624,-420.0,0.00021917,2]
[363181338,1748616651633,-2041.07,0.00021917,2]
[363181339,1748616651642,-1140.43,0.00021917,2]
[363181340,1748616651651,-1503.44,0.00021917,2]
[363181341,1748616651661,-420.0,0.00021917,2]
[363181342,1748616651672,-420.0,0.00021917,2]
[363181343,1748616651681,-437.88055222,0.00021917,2]
[363181344,1748616651690,-502.75352466,0.00021917,2]
[363181345,1748616651699,-420.0,0.00021917,2]
[363181346,1748616651708,-420.0,0.00021917,2]
[363181347,1748616651718,-420.0,0.00021917,2]
[363181348,1748616651728,-1647.86,0.00021917,2]
[363181349,1748616651738,-277.28,0.00021917,2]
[363181350,1748616651748,-420.0,0.00021917,2]
[363181351,1748616651757,-420.0,0.00021917,2]
[363181352,1748616651769,-460.93,0.00021917,2]
[363181353,1748616651782,-345.5861599,0.00021917,2]
[363181354,1748616651791,-420.0,0.00021917,2]
[363181355,1748616651801,-420.0,0.00021917,2]
[363181356,1748616651810,-500.0,0.00021917,2]
[363181357,1748616651819,-500.0,0.00021917,2]
[363181358,1748616651828,-1021.47,0.00021917,2]
[363181359,1748616651837,-420.0,0.00021917,2]
[363181360,1748616651846,-829.02,0.00021917,2]
[363181361,1748616651855,-12334.43,0.00021917,2]
[363181362,1748616651864,-1118.14,0.00021917,2]
[363181363,1748616651873,-524.62,0.00021917,2]
[363181364,1748616651883,-420.0,0.00021917,2]
[363181365,1748616651892,-145017.72,0.00021917,2]
[363181366,1748616651901,-502.31300169,0.00021917,2]
[363181367,1748616651910,-1486.5,0.00021917,2]
[363181368,1748616651922,-420.0,0.00021917,2]
[363181369,1748616651931,-420.0,0.00021917,2]
[363181370,1748616651941,-420.0,0.00021917,2]
[363181371,1748616651952,-420.0,0.00021917,2]
[363181372,1748616651962,-420.0,0.00021917,2]
[363181373,1748616651971,-168.192605,0.00021917,2]
[363181374,1748616651980,-1630.49,0.00021917,2]
[363181375,1748616651990,-420.0,0.00021917,2]
[363181376,1748616652000,-518.88265141,0.00021917,2]
[363181377,1748616652009,-633.9,0.00021917,2]
[363181378,1748616652021,-420.0,0.00021917,2]
[363181379,1748616652033,-1214.35,0.00021917,2]
[363181380,1748616652045,-420.0,0.00021917,2]
[363181381,1748616652055,-3955.66,0.00021917,2]
[363181382,1748616652244,-420.0,0.00021917,2]
[363181383,1748616652273,-422.2073434,0.00021917,2]
[363181384,1748616652282,-741.57,0.00021917,2]
[363181385,1748616652292,-420.0,0.00021917,2]
[363181386,1748616652302,-420.0,0.00021917,2]
[363181387,1748616652311,-595.93,0.00021917,2]
[363181388,1748616652321,-681.91,0.00021917,2]
[363181389,1748616652330,-420.0,0.00021917,2]
[363181390,1748616652339,-420.0,0.00021917,2]
[363181391,1748616652348,-420.0,0.00021917,2]
[363181392,1748616652358,-5907.64,0.00021917,2]
[363181393,1748616652367,-151.0,0.00021917,2]
[363181394,1748616652377,-420.0,0.00021917,2]
[363181395,1748616652386,-755.13,0.00021917,2]
[363181396,1748616652395,-151.0,0.00021917,2]
[363181397,1748616652405,-1270.24,0.00021917,2]
[363181398,1748616652415,-420.0,0.00021917,2]
[363181399,1748616652427,-1021.88,0.00021917,2]
[363181400,1748616652436,-1119.11,0.00021917,2]
[363181401,1748616652446,-423.97769909,0.00021917,2]
[363181402,1748616652456,-359.15595472,0.00021917,2]
[363181403,1748616652466,-420.0,0.00021917,2]
[363181404,1748616652475,-542.81492415,0.00021917,2]
[363181405,1748616652484,-420.0,0.00021917,2]
[363181406,1748616652494,-1146.75,0.00021917,2]
[363181407,1748616652503,-420.0,0.00021917,2]
[363181408,1748616652512,-420.0,0.00021917,2]
[363181409,1748616652521,-929.6,0.00021917,2]
[363181410,1748616652530,-420.0,0.00021917,2]
[363181411,1748616652540,-421.90373118,0.00021917,2]
[363181412,1748616652549,-420.0,0.00021917,2]
[363181413,1748616652558,-420.0,0.00021917,2]
[363181414,1748616652568,-420.0,0.00021917,2]
[363181415,1748616652577,-7943.19,0.00021917,2]
[363181416,1748616652587,-569.8519436,0.00021917,2]
[363181417,1748616652595,-428.59427159,0.00021917,2]
[363181418,1748616652605,-38822.61,0.00021917,2]
[363181419,1748616652615,-500.0,0.00021917,2]
[363181420,1748616652624,-500.0,0.00021917,2]
[363181421,1748616652633,-783.78,0.00021917,2]
[363181422,1748616652642,-500.0,0.00021917,2]